Cogmind - Beta 16 @@@ ROGUE MODE // 2025.11.29 @ 18:55:39 Player: Akiishi Result: Destroyed by G-47 Trooper with Particle Gun Performance ------------- Evolutions (1) 500 Regions Visited (2) 400 Robots Destroyed (31) 155 Value Destroyed (676) 676 Prototype IDs (0) 0 Alien Tech Used (0) 0 Bonus (0) 0 TOTAL SCORE: 1731 Bonus ------- None Cogmind --------- Core Integrity 0/400 Matter 290/300 Energy 100/100 System Corruption 0% Temperature Cool (9) Movement Core (100) Ox1 Location -9/Materials Parts ------- > --- POWER (1) -------- (None) > --- PROPULSION (4) --- (None) > --- UTILITY (2) ------ Small Storage Unit Visual Processing Unit > --- WEAPON (2) ------- Light Assault Rifle > --- INVENTORY (8) ---- Wheel Wheel Medium Matter Pod (5) Shield Generator Datajack Datajack Peak State ------------ > --- POWER ------------ Light Nuclear Core > --- PROPULSION ------- Flight Unit Flight Unit Flight Unit Flight Unit > --- UTILITY ---------- Small Storage Unit Improved Terrain Scanner > --- WEAPON ----------- Small Laser Datajack > --- INVENTORY -------- Light Ion Engine Aluminum Leg Aluminum Leg Datajack [Rating: 13] Favorites ----------- Power Light Ion Engine Engine Light Ion Engine Power Core Light Nuclear Core Propulsion Flight Unit Leg Aluminum Leg Flight Unit Flight Unit Utility Small Storage Unit Device Improved Terrain Scanner Storage Small Storage Unit Processor Visual Processing Unit Weapon Small Laser Energy Gun Small Laser Ballistic Gun Light Assault Rifle Special Melee Weapon Datajack Build | -11 -10 -9 ------- Run | Yrd Mat Mat Slots Evolved 2 | . . 2 Power . | . . . Propulsion 2 | . . 2 Utility . | . . . Weapon . | . . . Parts Attached 42 | 5 22 15 Power 6 | 1 3 2 Engine 5 | 1 2 2 Core 1 | . 1 . Reactor . | . . . Propulsion 19 | 2 9 8 Treads . | . . . Leg 9 | 2 7 . Wheel . | . . . Hover . | . . . Flight 10 | . 2 8 Utility 5 | . 4 1 Device 1 | . 1 . Storage 3 | . 3 . Processor 1 | . . 1 Hackware . | . . . Protection . | . . . Artifact . | . . . Weapon 12 | 2 6 4 Energy Gun 7 | 2 4 1 Energy Cannon . | . . . Ballistic Gun 3 | . . 3 Ballistic Cannon . | . . . Launcher . | . . . Special Weapon . | . . . Impact Weapon . | . . . Slashing Weapon . | . . . Piercing Weapon . | . . . Special Melee Weapon 2 | . 2 . Unidentified Prototypes . | . . . Parts Lost 16 | . 2 14 Power 3 | . 1 2 Propulsion 8 | . . 8 Utility 1 | . . 1 Weapon 4 | . 1 3 Highest Loss Streak 10 | . 1 10 To Critical Strikes . | . . . Average Backups 6 | . 6 7 Power . | . 1 . Propulsion 2 | . 3 3 Utility . | . . 1 Weapon 1 | . 1 . Tool/Special . | . . . Unused Backups 9 | . 2 7 Power 1 | . 1 . Propulsion 2 | . . 2 Utility 3 | . . 3 Weapon 1 | . 1 . Tool/Special 2 | . . 2 Average Slot Usage (%) 94 | . 95 92 Engine 8 | . 8 8 Core 3 | . 5 . Leg 17 | . 27 1 Flight 15 | . . 39 Device 1 | . 2 . Storage 17 | . 21 11 Processor 3 | . . 9 Energy Gun 17 | . 25 3 Ballistic Gun 2 | . . 7 Special Melee Weapon 4 | . 1 9 Peak Build Rating 13 | 5 11 13 Average Rating 8 | 3 7 9 On Entrance 5 | . 5 11 Avg Prop Armor Cover (%) 4 | . . 4 Naked Turns . | . . . Heaviest Build 20 | 7 20 13 Greatest Support 20 | 20 20 20 Greatest Overweight (x) 1 | . 1 . Average Overweight (x) . | . . . Largest Inventory Capacity 10 | 5 10 8 Average Capacity 7 | 5 7 8 Most Carried 8 | 3 8 8 Average Carried 6 | . 6 7 Final Capacity 8 | 5 8 8 Final Carried 6 | 2 6 6 Class Distribution -------------------- 53% | Scavenger-Mutant 31% | Scavenger-Sprinter 14% | Mutant Dominant Class ---------------- Scavenger-Mutant | -10/Materials Scavenger-Sprinter | -9/Materials Resources | -11 -10 -9 ----------- Run | Yrd Mat Mat Matter Collected 605 | 228 196 181 Remotely . | . . . Salvage Created 906 | 62 551 293 Parts 66 | 5 39 22 Haulers Intercepted 1 | . 1 . Recyclers Shooed . | . . . Parts Field Recycled . | . . . Retrieved Matter . | . . . Parts Self-Destructed . | . . . Prevented . | . . . Parts Restored . | . . . Kills | -11 -10 -9 ------- Run | Yrd Mat Mat Combat Hostiles Destroyed 28 | 1 17 10 Guns 27 | 1 17 9 AOE 1 | . . 1 Classes Destroyed 5 | 2 2 1 Tunneler 2 | 1 1 . Hauler 1 | . 1 . Swarmer 14 | . 9 5 Grunt 13 | 1 8 4 Sentry 1 | . . 1 Best Kill Streak 4 | 2 3 4 Combat Bots Only 4 | 1 3 4 Max Kills in Single Turn 1 | 1 1 1 Gunslinging . | . . . Exploded 1 | . . 1 Melee . | . . . Uniques/NPCs Destroyed . | . . . Combat | -11 -10 -9 -------- Run | Yrd Mat Mat Hostile Shots Fired 249 | 8 99 142 Missed 81 | 2 26 53 Hits 168 | 6 73 89 Projectile 168 | 6 73 89 Critical Strikes 3 | . 1 2 Damage Taken 1857 | 63 688 1106 Core 525 | 10 113 402 Absorbed by Shields . | . . . Core Remaining (%) 73 | 96 50 . Volleys Fired 117 | 5 71 41 Largest 2 | 2 2 1 Hottest 80 | 80 80 45 Shots Fired 176 | 10 125 41 Gun 176 | 10 125 41 Cannon . | . . . Launcher . | . . . Special . | . . . Kinetic 32 | . . 32 Thermal 120 | . 113 7 Explosive . | . . . Electromagnetic 24 | 10 12 2 Robot Hit Streak 16 | 5 8 16 Robot Miss Streak 7 | 1 7 1 Penetration Max . | . . . Secondary Targets 1 | . 1 . Max Gunslinging Chain 1 | . 1 . Shots Hit Robots 111 | 7 71 33 Core Hits 50 | 3 29 18 Critical Kills . | . . . Critical Parts Destroyed . | . . . Critical Strikes . | . . . Melee Attacks 3 | . 2 1 Impact . | . . . Slashing . | . . . Piercing . | . . . Sneak Attacks 1 | . 1 . Combat Hostiles . | . . . Follow-up Attacks . | . . . Damage Inflicted 1449 | 105 834 510 Guns 1299 | 105 820 374 Cannons . | . . . Explosions 136 | . . 136 Melee . | . . . Ramming 14 | . 14 . Kinetic 274 | . . 274 Thermal 933 | . 725 208 Explosive . | . . . Electromagnetic 228 | 105 95 28 Impact . | . . . Slashing . | . . . Piercing . | . . . Highest Corruption . | . . . Average Corruption . | . . . Corruption Purged . | . . . Corruption Blocked . | . . . Overload Shots . | . . . Overflow Damage 51 | . . 51 Projectiles . | . . . Explosions 51 | . . 51 Melee . | . . . Knockbacks . | . . . Impact . | . . . Kinetic . | . . . Secondary . | . . . Self-Inflicted Damage 145 | . . 145 Shots 3 | . . 3 Rammed . | . . . Targets Rammed 6 | . 6 . Kicked 6 | . 6 . Crushed . | . . . Highest Temperature 291 | 100 291 50 Average Temperature 57 | 46 63 10 Received Heat Transfer 546 | 36 204 306 Effects 2 | . 2 . Interference 2 | . 2 . Siege Activations . | . . . Martial Activations . | . . . Shielding Activations . | . . . Robots Disrupted . | . . . Combat Hostiles . | . . . Robots Corrupted . | . . . Combat Hostiles . | . . . Parts Fried . | . . . Impact Corruptions . | . . . Robots Melted . | . . . Combat Hostiles . | . . . Parts Melted 2 | . 2 . Heat Transferred 1925 | . 1650 275 Parts Sabotaged . | . . . Parts Stolen . | . . . Parts Stripped . | . . . Power Chain Reactions 1 | . . 1 Alert | -11 -10 -9 ------- Run | Yrd Mat Mat Maximum Alert Level 1 | . . 1 Low Security (%) 94 | 100 100 86 Level 1 5 | . . 13 Level 2 . | . . . Level 3 . | . . . Level 4 . | . . . Level 5 . | . . . High Security . | . . . Max Security . | . . . Peak Influence 237 | 20 88 237 Initial 22 | . 13 22 Average 72 | 2 32 145 Influence Increases 1080 | 25 451 604 Destroy 0b10 Robot/C 560 | 20 340 200 Destroy 0b10 Robot/NC 15 | 5 10 . Destroy Leader 102 | . 62 40 Successful Hack 9 | . 9 . Disable Machine 30 | . . 30 Destroy Structure 34 | . . 34 Partial Spotted 30 | . . 30 Lose Combat Pursuer 300 | . 30 270 Influence Decreases 872 | 5 418 449 Entered New Map 38 | . 7 31 Time Decay 674 | 5 391 278 Lost Part 160 | . 20 140 Squads Dispatched 7 | . 4 3 Investigation 2 | . 1 1 Extermination . | . . . Reinforcement 5 | . 3 2 Assault . | . . . Garrison . | . . . Intercept . | . . . Searches Triggered . | . . . Construction Impeded . | . . . Haulers Reinforced . | . . . Active Scanning Responses . | . . . Cargo Convoy Interrupts . | . . . Stealth | -11 -10 -9 --------- Run | Yrd Mat Mat Distress Signals 5 | . 2 3 Communications Jammed . | . . . Distress Signals . | . . . Times Spotted 67 | 1 27 39 Peak Tracking Total 14 | 1 4 14 Tactical Retreats 7 | . 1 6 Traps | -11 -10 -9 ------- Run | Yrd Mat Mat Traps Triggered . | . . . Indirectly . | . . . Trap Hack Attempts . | . . . Triggered . | . . . Disarmed 1 | . 1 . Reprogrammed . | . . . Reused . | . . . Traps Extracted . | . . . Installed . | . . . Triggered . | . . . Machines | -11 -10 -9 ---------- Run | Yrd Mat Mat Machines Disabled 2 | . . 2 Max in Single Turn 2 | . . 2 Machines Repaired . | . . . Machines Dismantled . | . . . Machines Sabotaged . | . . . Overloaded Fab Kills . | . . . Hacking | -11 -10 -9 --------- Run | Yrd Mat Mat Machines Accessed 6 | . 5 1 Terminals 5 | . 5 . Fabricators . | . . . Repair Stations . | . . . Recycling Units . | . . . Scanalyzers 1 | . . 1 Garrison Access . | . . . Total Hacks 22 | . 14 8 Successful 15 | . 8 7 Failed 6 | . 6 . Catastrophic . | . . . Database Lockouts 1 | . . 1 Manual . | . . . Terminals 14 | . 14 . Fabricators . | . . . Repair Stations . | . . . Recycling Units . | . . . Scanalyzers 8 | . . 8 Garrison Access . | . . . Terminal Hacks 8 | . 8 . Emergency Access Points 1 | . 1 . Terminal Index 1 | . 1 . Alert Level 1 | . 1 . Locate Traps 2 | . 2 . Disarm Traps 1 | . 1 . Zone Layout 2 | . 2 . Fabricator Hacks . | . . . Repair Station Hacks . | . . . Recycling Unit Hacks . | . . . Scanalyzer 7 | . . 7 Insert Component 3 | . . 3 Analyze 3 | . . 3 Retrieve Study 1 | . . 1 Garrison Access Hacks . | . . . Unauthorized Hacks . | . . . Terminals . | . . . Fabricators . | . . . Repair Stations . | . . . Recycling Units . | . . . Scanalyzers . | . . . Garrison Access . | . . . Data Cores Recovered . | . . . Used . | . . . Hacking Detections 6 | . 5 1 Full Trace Events 3 | . 2 1 Feedback Events . | . . . Feedback Blocked . | . . . Robot Schematics Acquired . | . . . Robots Built . | . . . Authchips . | . . . Time . | . . . Total Robot Build Rating . | . . . Part Schematics Acquired 3 | . . 3 Parts Built . | . . . Authchips . | . . . Time . | . . . Total Part Build Rating . | . . . Part Studies Acquired 1 | . . 1 Parts Repaired . | . . . Time . | . . . Parts Recycled . | . . . Recycled Matter . | . . . Retrieved Matter . | . . . Retrieved Components . | . . . Parts Scanalyzed 3 | . . 3 Part Schematics Acquired 3 | . . 3 Parts Damaged . | . . . Bothacking | -11 -10 -9 ------------ Run | Yrd Mat Mat Used RIF Installer . | . . . Robots Hacked 1 | . 1 . Non-combat 1 | . 1 . Combat . | . . . Robot Hacks Applied 1 | . 1 . find_recycling 1 | . 1 . Relay Couplers Released . | . . . Fabnet Peak Effective % . | . . . Robots Rewired . | . . . Allies Hacked . | . . . Hacks Repelled . | . . . Allies | -11 -10 -9 -------- Run | Yrd Mat Mat Total Allies . | . . . Largest Group . | . . . Highest-Rated Group . | . . . Highest-Rated Ally . | . . . Total Orders . | . . . Ally Attacks . | . . . Total Damage . | . . . Kills . | . . . Allies Corrupted . | . . . Allies Melted . | . . . Intel | -11 -10 -9 ------- Run | Yrd Mat Mat Active Infowar (turns) 752 | . 167 585 Optics 548 | . . 548 Terrain 204 | . 167 37 Robot Analysis Total . | . . . Derelict Logs Recovered . | . . . Drone Launches . | . . . Drone Recoveries . | . . . Exploration | -11 -10 -9 ------------- Run | Yrd Mat Mat Turns Passed 1645 | 95 946 604 Spaces Moved 1265 | 68 546 651 Core 20 | 20 . . Treads . | . . . Legs 604 | 48 544 12 Wheels . | . . . Hover . | . . . Flight 641 | . 2 639 Fastest Speed 31 | 50 117 31 Average Speed 74 | 99 119 32 Slowest Speed 120 | 120 120 120 Overloaded Moves . | . . . Propulsion Burnouts . | . . . Robots Hopped . | . . . Potential Cave-ins . | . . . Cave-ins Triggered . | . . . Exploration Rate (%) 39 | 7 77 35 Regions Visited 2 Branch Regions . Pre-discovered Areas . | . . . Known Exits Taken . | . . . Unknown Exits Taken 2 | 1 1 . Scrap Searched . | . . . Spaces Dug . | . . . Terrain Destroyed 45 | . . 45 Melee . | . . . Projectile . | . . . AOE 45 | . . 45 Terrain Rammed . | . . . Walls Destroyed . | . . . Machines Disabled . | . . . Actions | -11 -10 -9 --------- Run | Yrd Mat Mat Total 1808 | 85 717 1006 Wait 309 | 1 30 278 Move 1263 | 67 545 651 Hop . | . . . Pick Up 37 | 7 19 11 Fast Attach 5 | . 4 1 Attach 21 | 5 6 10 Detach . | . . . Swap 19 | . 13 6 Drop 28 | . 21 7 Fire 117 | 5 71 41 Melee 3 | . 2 1 Ram . | . . . Kick 6 | . 6 . Crush . | . . . Escape Stasis . | . . . Rewire . | . . . Trap . | . . . Miscellaneous . | . . . Route ------- -11/Scrapyard -10/Materials (discovered 4 exits: *Mat x3 / [*Min]) -9/Materials History --------- Turn | Location | Event 2 | -11/Scrapyard | Met Revision 17 67 | -11/Scrapyard | Discovered new exit (range 8) 96 | -11/Scrapyard | Entered Materials 326 | -10/Materials | Discovered new exit (range 3) 484 | -10/Materials | Build established: Scavenger-Mutant 710 | -10/Materials | Discovered new exit (range 11) 724 | -10/Materials | Discovered new exit (range 10) 819 | -10/Materials | Discovered new exit (range 13) 1042 | -10/Materials | Entered another Materials area 1042 | -9/Materials | Evolved 2 slots: Propulsion x2 1187 | -9/Materials | Central database locked down 1330 | -9/Materials | Build established: Scavenger-Sprinter 1565 | -9/Materials | Core integrity fell below 50% 1612 | -9/Materials | Core integrity fell below 20% 1646 | -9/Materials | Destroyed by G-47 Trooper with Particle Gun Last Messages --------------- Aluminum Leg destroyed. W-16 Scout sends out distress signal. K-01 Serf collects debris. S-10 Pest destroyed. G-34 Mercenary destroyed. K-01 Serf collects debris. Aluminum Leg destroyed. K-01 Serf collects debris. G-34 Mercenary destroyed. K-01 Serf collects debris. R-06 Scavenger collects Sml. Laser. K-01 Serf cleans the Nuclear Reactor. K-01 Serf collects debris. R-06 Scavenger collects Sml. Laser. K-01 Serf collects debris. R-06 Scavenger collects Flight Unit+. K-01 Serf cleans the Nuclear Reactor. R-06 Scavenger collects Lgt. Ion Engine. G-34 Mercenary destroyed. K-01 Serf collects debris. Map ----- +----------------------------------------------------+ | ????????????????????# #?????????#"""#???#??????? | | ????????????????????# #???????? #?????????? | | ????????????????????# #?????? #????????? | | ????????????????????# #????? #????????? | | ????????????????????# #????? #????????? | | ????????????????????# #???? +????????? | | ?????????????######## #??? #????????? | | ????????????? # #????############????????? | | ?????????????"" """ # #????????????????????????? | | ?????????????"" """ # #????????????????????????? | | ????????????""" """ # #????????????????????????? | | ??????????? """ """ # #????????????????????????? | | ########### """ """ + =#????????????????????????? | | # # # |%#????????????????????????? | | # # "T" # !#????????????????????????? | | # ########### #????????????????????????? | | # # T #??# %#?????"??????????????????? | | # =[] # #??# #????????? ??????????????? | | ? =[] #""" [ #??# #???????? ???????????????? | | ???[[] #""" #??# #??????? ????????????????? | | ????? #""" #??# #######+###??????????????? | | ????###+### ????# # #??????????????? | | ????# ###+####### r#!k ???????????????? | | ????# kY#g""" """????????????????? | | ????# " % % %k%""" """????????????????? | | ????# #@""" """????????????????? | | ????# ###+####### # s #??????????????? | | ###### ## ????# # #??????????????? | | # ## #??# # #??????????????? | | # ## #??# ###########??????????????? | | / ## #??# #????????????????????????? | | # ## /?? ????????????????????????? | | # ## #### ???????????????????????? | | ?# #########?## ??????????????????????? | | ####?# #??????????# ??????????????????????? | | ?????# #??????????# ?????????????????????? | | ?????# #??????????+ ???????????????????? | | ?????# #??????????# ????????????????????? | | ?#???# #??????????# ????????????????????? | | ?????# #??????????# ????????????????????? | | ###### #???????????# ###???????????????????????? | | # ##??????????? ??????????????????????????? | | # #???????????????????????????????????????? | | # #??????????#????????????????????????????? | | + #??#????????????????????????????????????? | | # #???????????????????????????????????????? | | """ # #???????????????????????????????????????? | | """ # #???????????????????????????????????????? | | """ #####???????????????????????????????????????? | | ######???????????????????????????????????????????? | +----------------------------------------------------+ Best States ------------- Heat Dissipation 28 Energy Generation 14 Energy Capacity 500 Matter Stores 300 Matter Capacity 300 Sight Range 18 Terrain Scan Range 16 Terrain Scan Density 10 Evasion (%) 63 Item Schematics ----------------- Flight Unit | -9/Materials | Scanalyzed Datajack | -9/Materials | Scanalyzed Aluminum Leg | -9/Materials | Scanalyzed Robot Schematics ------------------ None Fabricated ------------ Nothing Repaired ---------- Nothing Studied --------- Flight Unit | -9/Materials | Hacked Alien Tech Used ----------------- None Achievements -------------- Slippery One Spot Them First Challenges ------------ None Game ------ Seed ActiveIonicActivator Manual? 0 Play Time 00:23:28 Cumulative 18.6 hours Start 2025.11.29 @ 17:50:05 End 2025.11.29 @ 18:55:39 Sessions 3 Manual Loads 0 Difficulty Rogue Special Mode None Game No. 36 Rogue 36 Adventurer 0 Explorer 0 Win Type - Total 0 Types 0/0/0/0/0/0/0/0/0/0 Lore% 14 Gallery% 19 Achievement% 13 Wizard Run 0 Options --------- Layout 1 ASCII 0 Keyboard 0 Movement Numpad Keybinds 0 Fullscreen 1 Font 32/SmallcapsGlow Map View 50x35 Zoom Use 0% Tactical HUD 0 Map Filters NONE Filters NONE Steam 1 RUN: 65814696-2866-4e86-a3bb-acbae04a2003